fUSD/lending_fUSD_20250923
["ID","MTS","AMOUNT","RATE_DAILY","PERIOD"]
[387118351,1758585668387,15218.72,7.945e-05,2]
[387118352,1758585668412,9455.53115537,7.945e-05,2]
[387118353,1758585668441,2001.42128063,7.945e-05,2]
[387118355,1758585858587,153.99,9.903e-05,2]
[387118360,1758586232231,-400.0,0.00019452,2]
[387118361,1758586232241,-195.0,0.00019453,2]
[387118362,1758586232251,-150.0,0.00019455,2]
[387118363,1758586232261,-150.0,0.00019455,2]
[387118364,1758586232271,-150.0,0.00019455,2]
[387118365,1758586232280,-83.5596306,0.00019455,2]
[387118366,1758586232292,-66.4403694,0.00019455,2]
[387118367,1758586232301,-150.0,0.00019455,2]
[387118368,1758586232310,-150.0,0.00019455,2]
[387118369,1758586232319,-150.0,0.00019455,2]
[387118370,1758586232329,-149.5596306,0.00019458,2]
[387118371,1758586232340,-632.219832,0.00019458,2]
[387118372,1758586232356,-400.0,0.00019458,2]
[387118373,1758586232369,-18.2205374,0.00019458,2]
[387118374,1758586232379,-2000.0,0.00019459,3]
[387118375,1758586232389,-167.05310542,0.0001948,2]
[387118376,1758586232398,-150.0,0.00019587,7]
[387118377,1758586232408,-150.0,0.00019725,4]
[387118378,1758586232418,-157.51,0.00019935,2]
[387118379,1758586232428,-666.0,0.00019963,3]
[387118380,1758586232437,-150.0,0.00019995,4]
[387118381,1758586232447,-2500.0,0.0002,2]
[387118382,1758586232457,-150.0,0.0002,2]
[387118383,1758586232467,-160.0,0.0002006,2]
[387118384,1758586232477,-150.0,0.00020175,4]
[387118385,1758586232487,-150.0,0.00020265,4]
[387118386,1758586232496,-602.0,0.00020304,2]
[387118387,1758586232506,-1582.0,0.00020304,2]
[387118388,1758586232516,-813.0,0.00020304,2]
[387118389,1758586232526,-500.0,0.00020499,2]
[387118390,1758586232536,-500.0,0.00020499,2]
[387118391,1758586232546,-500.0,0.00020499,2]
[387118392,1758586232556,-500.0,0.00020499,2]
[387118393,1758586232567,-250.0,0.00020499,2]
[387118394,1758586232577,-2520.69897025,0.000205,2]
[387118395,1758586232601,-1709.30102975,0.000205,2]
[387118396,1758586232610,-899.0,0.000205,2]
[387118397,1758586232620,-1179.0,0.000205,2]
[387118398,1758586232629,-320.24953234,0.000205,2]
[387118399,1758586232641,-4201.75046766,0.000205,2]
[387118400,1758586232651,-1402.24513457,0.000205,2]
[387118401,1758586232662,-889.96405998,0.000205,2]
[387118402,1758586232673,-870.90512706,0.000205,2]
[387118403,1758586232685,-9186.94796768,0.000205,2]
[387118404,1758586232713,-6540.93771071,0.000205,2]
[387118406,1758586232724,-4176.0,0.000205,2]
[387118407,1758586232733,-727.0,0.000205,2]
[387118409,1758586232743,-1787.04,0.00020517,2]
[387118411,1758586232752,-150.0,0.00020536,4]
[387118412,1758586232761,-1786.99,0.00020545,2]
[387118413,1758586232771,-300.0,0.000206,7]
[387118414,1758586232780,-258.9,0.00020695,2]
[387118415,1758586232790,-600.0,0.000207,7]
[387118416,1758586232800,-11669.20419951,0.00020716,2]
[387118417,1758586232809,-3826.60802946,0.00020716,2]
[387118418,1758586232818,-940.75594873,0.00020717,2]
[387118419,1758586232828,-1786.99,0.00020791,2]
[387118421,1758586232837,-1786.99,0.00020794,2]
[387118423,1758586232847,-1000.0,0.000208,7]
[387118426,1758586232856,-500.0,0.00020804,2]
[387118428,1758586232866,-151.0,0.00020804,2]
[387118430,1758586232875,-500.0,0.00020804,2]
[387118431,1758586232884,-150.0,0.00020806,4]
[387118433,1758586232901,-158.92337869,0.00020807,2]
[387118435,1758586232910,-152.65,0.00020807,2]
[387118437,1758586232920,-516.58280827,0.00020811,2]
[387118439,1758586232930,-162.51723748,0.00020815,2]
[387118441,1758586232940,-494.40789411,0.00020815,2]
[387118442,1758586232949,-60307.23975902,0.00020816,2]
[387118443,1758586232961,-1832.0,0.00020816,2]
[387118444,1758586233069,-586.51541478,0.00020816,2]
[387118445,1758586233081,-741.47776478,0.00020816,2]
[387118446,1758586233093,-780.94247861,0.00020816,2]
[387118447,1758586233104,-1043.14750507,0.00020816,2]
[387118448,1758586233121,-930563.16108499,0.00020816,2]
[387118449,1758586233130,-151.68,0.00020816,2]
[387118450,1758586233140,-151.79,0.00020816,2]
[387118451,1758586233150,-150.94,0.00020816,2]
[387118452,1758586233159,-150.92,0.00020816,2]
[387118453,1758586233169,-22737.32054904,0.00020816,2]
[387118454,1758586233178,-400.0,0.00020816,2]
[387118455,1758586233188,-400.0,0.00020816,2]
[387118456,1758586233198,-400.0,0.00020816,2]
[387118457,1758586233208,-400.0,0.00020816,2]
[387118458,1758586233218,-400.0,0.00020816,2]
[387118459,1758586233227,-573.29,0.00020816,2]
[387118460,1758586233237,-400.0,0.00020816,2]
[387118461,1758586233247,-400.0,0.00020816,2]
[387118462,1758586233256,-400.0,0.00020816,2]
[387118463,1758586233265,-400.0,0.00020816,2]
[387118464,1758586233275,-400.0,0.00020816,2]
[387118465,1758586233284,-400.0,0.00020816,2]
[387118466,1758586233293,-400.0,0.00020816,2]
[387118467,1758586233303,-400.0,0.00020816,2]
[387118468,1758586233313,-400.0,0.00020816,2]
[387118469,1758586233322,-400.0,0.00020816,2]
[387118470,1758586233331,-400.0,0.00020816,2]
[387118471,1758586233341,-400.0,0.00020816,2]
[387118472,1758586233351,-400.0,0.00020816,2]
[387118473,1758586233361,-445.0,0.00020816,2]
[387118474,1758586233371,-400.0,0.00020816,2]
[387118475,1758586233380,-400.0,0.00020816,2]
[387118476,1758586233389,-400.0,0.00020816,2]
[387118477,1758586233399,-400.0,0.00020816,2]
[387118478,1758586233409,-400.0,0.00020816,2]
[387118479,1758586233418,-400.0,0.00020816,2]
[387118480,1758586233427,-400.0,0.00020816,2]
[387118481,1758586233437,-400.0,0.00020816,2]
[387118482,1758586233447,-400.0,0.00020816,2]
[387118483,1758586233457,-400.0,0.00020816,2]
[387118484,1758586233466,-400.0,0.00020816,2]
[387118485,1758586233476,-400.0,0.00020816,2]
[387118486,1758586233486,-400.0,0.00020816,2]
[387118487,1758586233495,-400.0,0.00020816,2]
[387118488,1758586233504,-400.0,0.00020816,2]
[387118489,1758586233514,-400.0,0.00020816,2]
[387118490,1758586233524,-400.0,0.00020816,2]
[387118491,1758586233534,-400.0,0.00020816,2]
[387118492,1758586233543,-400.0,0.00020816,2]
[387118493,1758586233552,-666.0,0.00020816,2]
[387118494,1758586233562,-400.0,0.00020816,2]
[387118495,1758586233571,-400.0,0.00020816,2]
[387118496,1758586233581,-400.0,0.00020816,2]
[387118497,1758586233590,-400.0,0.00020816,2]
[387118498,1758586233600,-500.0,0.00020816,2]
[387118499,1758586233610,-501.95259569,0.00020816,2]
[387118500,1758586233620,-400.0,0.00020816,2]
[387118501,1758586233629,-400.0,0.00020816,2]
[387118502,1758586233639,-400.0,0.00020816,2]
[387118503,1758586233648,-400.0,0.00020816,2]
[387118504,1758586233658,-400.0,0.00020816,2]
[387118505,1758586233667,-400.0,0.00020816,2]
[387118506,1758586233677,-400.0,0.00020816,2]
[387118507,1758586233687,-400.0,0.00020816,2]
[387118508,1758586233696,-400.0,0.00020816,2]
[387118509,1758586233706,-400.0,0.00020816,2]
[387118510,1758586233715,-400.0,0.00020816,2]
[387118511,1758586233726,-400.0,0.00020816,2]
[387118512,1758586233735,-400.0,0.00020816,2]
[387118513,1758586233744,-400.0,0.00020816,2]
[387118514,1758586233754,-500.0,0.00020816,2]
[387118515,1758586233763,-500.0,0.00020816,2]
[387118516,1758586233772,-500.0,0.00020816,2]
[387118517,1758586233781,-500.0,0.00020816,2]
[387118518,1758586233791,-500.0,0.00020816,2]
[387118519,1758586233800,-500.0,0.00020816,2]
[387118520,1758586233809,-400.0,0.00020816,2]
[387118521,1758586233819,-400.0,0.00020816,2]
[387118522,1758586233828,-400.0,0.00020816,2]
[387118523,1758586233837,-400.0,0.00020816,2]
[387118524,1758586233847,-400.0,0.00020816,2]
[387118525,1758586233856,-400.0,0.00020816,2]
[387118526,1758586233866,-400.0,0.00020816,2]
[387118527,1758586233875,-400.0,0.00020816,2]
[387118528,1758586233884,-400.0,0.00020816,2]
[387118529,1758586233899,-400.0,0.00020816,2]
[387118530,1758586233908,-162.043713,0.00020816,2]
[387118531,1758586233920,-400.0,0.00020816,2]
[387118532,1758586233931,-167.154061,0.00020816,2]
[387118533,1758586233941,-156.673711,0.00020816,2]
[387118534,1758586233951,-440.08,0.00020816,2]
[387118535,1758586233961,-400.0,0.00020816,2]
[387118536,1758586233971,-631.336593,0.00020816,2]
[387118537,1758586233981,-400.0,0.00020816,2]
[387118538,1758586233991,-2214.821677,0.00020816,2]
[387118539,1758586234001,-400.0,0.00020816,2]
[387118540,1758586234010,-400.0,0.00020816,2]
[387118541,1758586234020,-478.49,0.00020816,2]
[387118542,1758586234029,-400.0,0.00020816,2]
[387118543,1758586234039,-400.0,0.00020816,2]
[387118544,1758586234049,-1307.0,0.00020816,2]
[387118545,1758586234060,-400.0,0.00020816,2]
[387118546,1758586234070,-400.0,0.00020816,2]
[387118547,1758586234080,-400.0,0.00020816,2]
[387118548,1758586234090,-713.17,0.00020816,2]
[387118549,1758586234100,-400.0,0.00020816,2]
[387118550,1758586234110,-934.9,0.00020816,2]
[387118551,1758586234123,-300.0,0.00020816,2]
[387118552,1758586234133,-400.0,0.00020816,2]
[387118553,1758586234143,-400.0,0.00020816,2]
[387118554,1758586234153,-793.78,0.00020816,2]
[387118555,1758586234163,-400.0,0.00020816,2]
[387118556,1758586234174,-400.0,0.00020816,2]
[387118557,1758586234184,-400.0,0.00020816,2]
[387118558,1758586234194,-400.0,0.00020816,2]
[387118559,1758586234204,-400.0,0.00020816,2]
[387118560,1758586234214,-400.0,0.00020816,2]
[387118561,1758586234224,-822.29,0.00020816,2]
[387118562,1758586234233,-400.0,0.00020816,2]
[387118563,1758586234244,-400.0,0.00020816,2]
[387118564,1758586234253,-416.69,0.00020816,2]
[387118565,1758586234263,-400.0,0.00020816,2]
[387118566,1758586234272,-400.0,0.00020816,2]
[387118567,1758586234281,-400.0,0.00020816,2]
[387118568,1758586234291,-400.0,0.00020816,2]
[387118569,1758586234300,-400.0,0.00020816,2]
[387118570,1758586234309,-524.97,0.00020816,2]
[387118571,1758586234318,-400.0,0.00020816,2]
[387118572,1758586234327,-400.0,0.00020816,2]
[387118573,1758586234336,-400.0,0.00020816,2]
[387118574,1758586234346,-1087.47,0.00020816,2]
[387118575,1758586234355,-400.0,0.00020816,2]
[387118576,1758586234365,-400.0,0.00020816,2]
[387118577,1758586234374,-400.0,0.00020816,2]
[387118578,1758586234383,-400.0,0.00020816,2]
[387118579,1758586234392,-400.0,0.00020816,2]
[387118580,1758586234401,-400.0,0.00020816,2]
[387118581,1758586234411,-400.0,0.00020816,2]
[387118582,1758586234420,-400.0,0.00020816,2]
[387118583,1758586234430,-3035.15,0.00020816,2]
[387118584,1758586234439,-476.58,0.00020816,2]
[387118585,1758586234449,-400.0,0.00020816,2]
[387118586,1758586234460,-400.0,0.00020816,2]
[387118587,1758586234470,-400.0,0.00020816,2]
[387118588,1758586234479,-423.93,0.00020816,2]
[387118589,1758586234489,-400.0,0.00020816,2]
[387118590,1758586234499,-963.27,0.00020816,2]
[387118591,1758586234510,-449.22,0.00020816,2]
[387118592,1758586234520,-400.0,0.00020816,2]
[387118593,1758586234530,-400.0,0.00020816,2]
[387118594,1758586234539,-400.0,0.00020816,2]
[387118595,1758586234550,-439.34,0.00020816,2]
[387118596,1758586234559,-400.0,0.00020816,2]
[387118597,1758586234569,-400.0,0.00020816,2]
[387118598,1758586234578,-400.0,0.00020816,2]
[387118599,1758586234589,-510.31,0.00020816,2]
[387118600,1758586234599,-467.18,0.00020816,2]
[387118601,1758586234608,-400.0,0.00020816,2]
[387118602,1758586234618,-400.0,0.00020816,2]
[387118603,1758586234627,-400.0,0.00020816,2]
[387118604,1758586234637,-400.0,0.00020816,2]
[387118605,1758586234646,-2471.35,0.00020816,2]
[387118606,1758586234656,-400.0,0.00020816,2]
[387118607,1758586234666,-879.0,0.00020816,2]
[387118608,1758586234676,-400.0,0.00020816,2]
[387118609,1758586234685,-769.24,0.00020816,2]
[387118610,1758586234695,-430.85,0.00020816,2]
[387118611,1758586234705,-400.0,0.00020816,2]
[387118612,1758586234715,-1248.14,0.00020816,2]
[387118613,1758586234726,-1385.52,0.00020816,2]
[387118614,1758586234735,-400.0,0.00020816,2]
[387118615,1758586234745,-400.0,0.00020816,2]
[387118616,1758586234755,-482.93,0.00020816,2]
[387118617,1758586234764,-1275.52,0.00020816,2]
[387118618,1758586234773,-400.0,0.00020816,2]
[387118619,1758586234782,-400.0,0.00020816,2]
[387118620,1758586234791,-400.0,0.00020816,2]
[387118621,1758586234800,-402.26,0.00020816,2]
[387118622,1758586234810,-1305.16,0.00020816,2]
[387118623,1758586234819,-1190.24,0.00020816,2]
[387118624,1758586234828,-545.19,0.00020816,2]
[387118625,1758586234837,-400.0,0.00020816,2]
[387118626,1758586234846,-400.0,0.00020816,2]
[387118627,1758586234855,-666.0,0.00020816,2]
[387118628,1758586234865,-400.0,0.00020816,2]
[387118629,1758586234875,-559.28,0.00020816,2]
[387118630,1758586234885,-400.0,0.00020816,2]
[387118631,1758586234898,-400.0,0.00020816,2]
[387118632,1758586234907,-400.0,0.00020816,2]
[387118633,1758586234917,-511.17,0.00020816,2]
[387118634,1758586234927,-753.89,0.00020816,2]
[387118635,1758586234936,-400.0,0.00020816,2]
[387118636,1758586234945,-400.0,0.00020816,2]
[387118637,1758586234955,-400.0,0.00020816,2]
[387118638,1758586234964,-631.59,0.00020816,2]
[387118639,1758586234974,-744.6,0.00020816,2]
[387118640,1758586234984,-400.0,0.00020816,2]
[387118641,1758586234993,-400.0,0.00020816,2]
[387118642,1758586235002,-400.0,0.00020816,2]
[387118643,1758586235011,-400.0,0.00020816,2]
[387118644,1758586235021,-161.853673,0.00020816,2]
[387118645,1758586235030,-493.99,0.00020816,2]
[387118646,1758586235040,-157.764337,0.00020816,2]
[387118647,1758586235050,-165.55686,0.00020816,2]
[387118648,1758586235059,-400.0,0.00020816,2]
[387118649,1758586235068,-152.100332,0.00020816,2]
[387118650,1758586235078,-500.0,0.00020816,2]
[387118651,1758586235087,-173.91877729,0.00020816,2]
[387118653,1758586238173,-226.08122271,0.00020816,2]
[387118654,1758586238183,-735.41976163,0.00020816,2]
[387118655,1758586238195,-539.81023837,0.00020816,2]
[387118656,1758586238204,-132.19453185,0.00020816,2]
[387118657,1758586238215,-267.80546815,0.00020816,2]
[387118658,1758586238224,-436.413273,0.00020816,2]
[387118659,1758586238234,-156.3559309,0.00020816,2]
[387118660,1758586238245,-2633.6440691,0.00020816,2]
[387118661,1758586238255,-400.0,0.00020816,2]
[387118662,1758586238264,-400.0,0.00020816,2]
[387118663,1758586238274,-394.91034826,0.00020816,2]
[387118664,1758586238289,-5.08965174,0.00020816,2]
[387118665,1758586238299,-400.0,0.00020816,2]
[387118666,1758586238308,-955.51,0.00020816,2]
[387118667,1758586238318,-137.75237093,0.00020816,2]
[387118668,1758586238330,-262.24762907,0.00020816,2]
[387118669,1758586238340,-400.0,0.00020816,2]
[387118670,1758586238350,-1584.16,0.00020816,2]
[387118671,1758586238359,-492.0,0.00020816,2]
[387118672,1758586238369,-562.7307703,0.00020816,2]
[387118673,1758586238378,-400.0,0.00020816,2]
[387118674,1758586238388,-400.0,0.00020816,2]
[387118675,1758586238398,-561.94,0.00020816,2]
[387118676,1758586238408,-857.58,0.00020816,2]
[387118677,1758586238417,-400.0,0.00020816,2]
[387118678,1758586238426,-512.98,0.00020816,2]
[387118679,1758586238436,-400.0,0.00020816,2]
[387118680,1758586238446,-400.0,0.00020816,2]
[387118681,1758586238455,-1125.67,0.00020816,2]
[387118682,1758586238464,-1125.67,0.00020816,2]
[387118683,1758586238473,-1125.67,0.00020816,2]
[387118684,1758586238483,-1125.67,0.00020816,2]
[387118685,1758586238492,-1125.67,0.00020816,2]
[387118686,1758586238501,-400.0,0.00020816,2]
[387118687,1758586238511,-1125.67,0.00020816,2]
[387118688,1758586238520,-400.0,0.00020816,2]
[387118689,1758586238530,-496.63,0.00020816,2]
[387118690,1758586238539,-400.0,0.00020816,2]
[387118691,1758586238549,-400.0,0.00020816,2]
[387118692,1758586238558,-400.0,0.00020816,2]
[387118693,1758586238567,-400.0,0.00020816,2]
[387118694,1758586238577,-785.99,0.00020816,2]
[387118695,1758586238586,-450.44,0.00020816,2]
[387118696,1758586238596,-400.0,0.00020816,2]
[387118697,1758586238605,-400.0,0.00020816,2]
[387118699,1758586238614,-2185.14676,0.00020816,2]
[387118700,1758586238623,-400.0,0.00020816,2]
[387118701,1758586238633,-400.0,0.00020816,2]
[387118702,1758586238642,-400.0,0.00020816,2]
[387118703,1758586238651,-157.413705,0.00020816,2]
[387118704,1758586238661,-1010.0,0.00020816,2]
[387118705,1758586238670,-534.48,0.00020816,2]
[387118706,1758586238679,-152.49,0.00020817,2]
[387118707,1758586238690,-152.51,0.00020817,2]
[387118708,1758586238699,-530.06,0.00020817,2]
[387118709,1758586238709,-534.67,0.00020817,2]
[387118710,1758586238718,-516.98,0.00020817,2]
[387118711,1758586238728,-521.83,0.00020817,2]
[387118712,1758586238737,-534.81,0.00020817,2]
[387118713,1758586238747,-151.95,0.00020817,2]
[387118714,1758586238757,-150.81,0.00020817,2]
[387118715,1758586238766,-529.54,0.00020817,2]
[387118716,1758586238776,-151.06,0.00020817,2]
[387118717,1758586238786,-152.89,0.00020817,2]
[387118718,1758586238796,-152.31,0.00020817,2]
[387118719,1758586238806,-150.16,0.00020817,2]
[387118720,1758586238816,-150.36,0.00020817,2]
[387118721,1758586238825,-151.59,0.00020817,2]
[387118722,1758586238835,-151.47,0.00020817,2]
[387118723,1758586238845,-151.81,0.00020817,2]
[387118724,1758586238854,-150.2,0.00020817,2]
[387118725,1758586238865,-44.74113563,0.00020817,2]
[387118726,1758586238877,-355.25886437,0.00020817,2]
[387118727,1758586238887,-400.0,0.00020817,2]
[387118728,1758586238900,-400.0,0.00020817,2]
[387118729,1758586238911,-400.0,0.00020817,2]
[387118730,1758586238920,-400.0,0.00020817,2]
[387118731,1758586238930,-400.0,0.00020817,2]
[387118732,1758586238941,-400.0,0.00020817,2]
[387118733,1758586238950,-400.0,0.00020817,2]
[387118734,1758586238959,-400.0,0.00020817,2]
[387118735,1758586238969,-400.0,0.00020817,2]
[387118736,1758586238980,-400.0,0.00020817,2]
[387118737,1758586238989,-309.02113563,0.00020817,2]
[387118738,1758586239002,-90.97886437,0.00020817,2]
[387118739,1758586239012,-400.0,0.00020817,2]
[387118740,1758586239022,-171.26753659,0.00020817,2]
[387118742,1758586240214,-161.330483,0.00020816,2]
[387118743,1758586240224,-166.925889,0.00020816,2]
[387118744,1758586240233,-200.62763352,0.00020817,2]
[387118745,1758586240273,-28.10482989,0.00020817,2]
[387118746,1758586240283,-400.0,0.00020817,2]
[387118747,1758586240292,-400.0,0.00020817,2]
[387118748,1758586240301,-400.0,0.00020817,2]
[387118749,1758586240311,-400.0,0.00020817,2]
[387118750,1758586240320,-400.0,0.00020817,2]
[387118751,1758586240329,-400.0,0.00020817,2]
[387118752,1758586240338,-400.0,0.00020817,2]
[387118753,1758586240347,-400.0,0.00020817,2]
[387118754,1758586240356,-400.0,0.00020817,2]
[387118755,1758586240365,-400.0,0.00020817,2]
[387118756,1758586240374,-400.0,0.00020817,2]
[387118757,1758586240382,-400.0,0.00020817,2]
[387118758,1758586240392,-406.57,0.00020817,2]
[387118759,1758586240402,-400.0,0.00020817,2]
[387118760,1758586240411,-400.0,0.00020817,2]
[387118761,1758586240421,-400.0,0.00020817,2]
[387118762,1758586240430,-400.0,0.00020817,2]
[387118763,1758586240439,-400.0,0.00020817,2]
[387118764,1758586240448,-400.0,0.00020817,2]
[387118765,1758586240460,-400.0,0.00020817,2]
[387118766,1758586240469,-400.0,0.00020817,2]
[387118767,1758586240478,-400.0,0.00020817,2]
[387118771,1758586240728,-400.0,0.00020817,2]
[387118772,1758586240738,-400.0,0.00020817,2]
[387118773,1758586240748,-1941.0255717,0.00020817,2]
[387118774,1758586240757,-2575.2095179,0.00020817,2]
[387118775,1758586240766,-200.0,0.00020817,2]
[387118776,1758586240776,-400.0,0.00020817,2]
[387118777,1758586240785,-400.0,0.00020817,2]
[387118778,1758586240794,-400.0,0.00020817,2]
[387118779,1758586240803,-400.0,0.00020817,2]
[387118780,1758586240813,-400.0,0.00020817,2]
[387118781,1758586240822,-400.0,0.00020817,2]
[387118782,1758586240831,-400.0,0.00020817,2]
[387118783,1758586240841,-400.0,0.00020817,2]
[387118784,1758586240851,-400.0,0.00020817,2]
[387118785,1758586240860,-400.0,0.00020817,2]
[387118786,1758586240869,-400.0,0.00020817,2]
[387118787,1758586240879,-400.0,0.00020817,2]
[387118788,1758586240888,-400.0,0.00020817,2]
[387118789,1758586240902,-400.0,0.00020817,2]
[387118790,1758586240911,-400.0,0.00020817,2]
[387118791,1758586240920,-400.0,0.00020817,2]
[387118792,1758586240929,-400.0,0.00020817,2]
[387118793,1758586240939,-400.0,0.00020817,2]
[387118794,1758586240949,-400.0,0.00020817,2]
[387118795,1758586240958,-400.0,0.00020817,2]
[387118796,1758586240967,-400.0,0.00020817,2]
[387118797,1758586240976,-500.0,0.00020817,2]
[387118798,1758586240986,-400.0,0.00020817,2]
[387118799,1758586240995,-400.0,0.00020817,2]
[387118800,1758586241004,-400.0,0.00020817,2]
[387118801,1758586241014,-400.0,0.00020817,2]
[387118802,1758586241024,-400.0,0.00020817,2]
[387118803,1758586241033,-400.0,0.00020817,2]
[387118804,1758586241043,-400.0,0.00020817,2]
[387118805,1758586241052,-400.0,0.00020817,2]
[387118806,1758586241061,-400.0,0.00020817,2]
[387118807,1758586241070,-400.0,0.00020817,2]
[387118808,1758586241079,-400.0,0.00020817,2]
[387118809,1758586241088,-400.0,0.00020817,2]
[387118810,1758586241097,-400.0,0.00020817,2]
[387118811,1758586241107,-400.0,0.00020817,2]
[387118812,1758586241117,-400.0,0.00020817,2]
[387118813,1758586241126,-400.0,0.00020817,2]
[387118814,1758586241135,-400.0,0.00020817,2]
[387118815,1758586241145,-400.0,0.00020817,2]
[387118816,1758586241154,-445.99,0.00020817,2]
[387118817,1758586241164,-400.0,0.00020817,2]
[387118818,1758586241173,-400.0,0.00020817,2]
[387118819,1758586241183,-400.0,0.00020817,2]
[387118820,1758586241194,-400.0,0.00020817,2]
[387118821,1758586241204,-400.0,0.00020817,2]
[387118822,1758586241213,-400.0,0.00020817,2]
[387118823,1758586241223,-500.0,0.00020817,2]
[387118824,1758586241232,-500.0,0.00020817,2]
[387118825,1758586241242,-500.0,0.00020817,2]
[387118826,1758586241252,-500.0,0.00020817,2]
[387118827,1758586241262,-500.0,0.00020817,2]
[387118828,1758586241271,-400.0,0.00020817,2]
[387118829,1758586241281,-400.0,0.00020817,2]
[387118830,1758586241290,-400.0,0.00020817,2]
[387118831,1758586241299,-400.0,0.00020817,2]
[387118832,1758586241309,-400.0,0.00020817,2]
[387118833,1758586241318,-400.0,0.00020817,2]
[387118834,1758586241328,-400.0,0.00020817,2]
[387118835,1758586241337,-400.0,0.00020817,2]
[387118836,1758586241347,-400.0,0.00020817,2]
[387118837,1758586241357,-400.0,0.00020817,2]
[387118838,1758586241367,-400.0,0.00020817,2]
[387118839,1758586241377,-400.0,0.00020817,2]
[387118840,1758586241386,-400.0,0.00020817,2]
[387118841,1758586241396,-400.0,0.00020817,2]
[387118842,1758586241405,-400.0,0.00020817,2]
[387118843,1758586241414,-400.0,0.00020817,2]
[387118844,1758586241424,-393.30619547,0.00020817,2]
[387118845,1758586241433,-400.0,0.00020817,2]
[387118846,1758586241442,-400.0,0.00020817,2]
[387118847,1758586241452,-400.0,0.00020817,2]
[387118848,1758586241461,-400.0,0.00020817,2]
[387118849,1758586241471,-400.0,0.00020817,2]
[387118850,1758586241482,-400.0,0.00020817,2]
[387118851,1758586241491,-400.0,0.00020817,2]
[387118852,1758586241500,-400.0,0.00020817,2]
[387118853,1758586241510,-400.0,0.00020817,2]
[387118854,1758586241519,-400.0,0.00020817,2]
[387118855,1758586241529,-400.0,0.00020817,2]
[387118856,1758586241538,-400.0,0.00020817,2]
[387118857,1758586241547,-400.0,0.00020817,2]
[387118858,1758586241557,-400.0,0.00020817,2]
[387118859,1758586241567,-400.0,0.00020817,2]
[387118860,1758586241577,-419.32,0.00020817,2]
[387118861,1758586241587,-400.0,0.00020817,2]
[387118862,1758586241596,-644.88,0.00020817,2]
[387118863,1758586241606,-200.0,0.00020817,2]
[387118864,1758586241617,-1270.55,0.00020817,2]
[387118865,1758586241626,-14038.42245295,0.00020817,2]
[387118866,1758586241778,-1498.52813545,0.00020817,2]
[387118867,1758586241787,-400.0,0.00020817,2]
[387118868,1758586241797,-400.0,0.00020817,2]
[387118869,1758586241807,-400.0,0.00020817,2]
[387118870,1758586241816,-400.0,0.00020817,2]
[387118871,1758586241825,-429.36,0.00020817,2]
[387118872,1758586241834,-400.0,0.00020817,2]
[387118873,1758586241843,-400.0,0.00020817,2]
[387118874,1758586241853,-500.0,0.00020817,2]
[387118875,1758586241864,-500.0,0.00020817,2]